fUSD/lending_fUSD_20251023
["ID","MTS","AMOUNT","RATE_DAILY","PERIOD"]
[392155264,1761217849134,-151.0,0.00045,120]
[392155265,1761217849143,-151.0,0.00045,120]
[392155266,1761217849153,-151.0,0.00045,120]
[392155267,1761217849163,-179.596473,0.00045,120]
[392155268,1761217849174,-211.982119,0.00045,120]
[392155269,1761217849183,-151.0,0.00045,120]
[392155270,1761217849192,-151.0,0.00045,120]
[392155271,1761217849201,-151.0,0.00045,120]
[392155272,1761217849211,-151.0,0.00045,120]
[392155273,1761217849220,-151.0,0.00045,120]
[392155274,1761217849229,-275.683668,0.00045,120]
[392155275,1761217849239,-151.459336,0.00045,120]
[392155276,1761217849248,-151.0,0.00045,120]
[392155277,1761217849258,-151.0,0.00045,120]
[392155278,1761217849267,-151.0,0.00045,120]
[392155279,1761217849278,-151.0,0.00045,120]
[392155280,1761217849290,-532.949001,0.00045,30]
[392155281,1761217849299,-532.949001,0.00045,30]
[392155282,1761217849309,-532.949001,0.00045,30]
[392155283,1761217849318,-532.949001,0.00045,30]
[392155284,1761217849328,-532.949001,0.00045,30]
[392155285,1761217849338,-532.949001,0.00045,30]
[392155286,1761217849347,-532.949001,0.00045,30]
[392155287,1761217849359,-532.949001,0.00045,30]
[392155288,1761217849369,-532.949001,0.00045,30]
[392155289,1761217849379,-532.949001,0.00045,30]
[392155290,1761217849389,-532.949001,0.00045,30]
[392155291,1761217849399,-532.949001,0.00045,30]
[392155292,1761217849408,-532.949001,0.00045,30]
[392155293,1761217849418,-532.949001,0.00045,30]
[392155294,1761217849428,-532.949001,0.00045,30]
[392155295,1761217849438,-532.949001,0.00045,30]
[392155296,1761217849447,-151.0,0.00045,120]
[392155297,1761217849456,-152.802054,0.00045,120]
[392155298,1761217849466,-151.0,0.00045,120]
[392155299,1761217849475,-151.0,0.00045,120]
[392155300,1761217849484,-151.0,0.00045,120]
[392155301,1761217849494,-151.0,0.00045,120]
[392155302,1761217849504,-277.114653,0.00045,120]
[392155303,1761217849513,-151.0,0.00045,120]
[392155304,1761217849523,-151.0,0.00045,120]
[392155305,1761217849533,-1000.0,0.00045,30]
[392155306,1761217849542,-212.94,0.00045024,14]
[392155307,1761217849552,-1000.0,0.00045026,14]
[392155308,1761217849561,-212.94,0.00045048,14]
[392155309,1761217849571,-392769.71642744,0.0004505,120]
[392155310,1761217849580,-356.16454594,0.00045068,10]
[392155311,1761217849590,-500.0,0.00045068,10]
[392155312,1761217849599,-500.0,0.00045073,10]
[392155313,1761217849608,-164.36809569,0.00045082,15]
[392155314,1761217849617,-4133.32607523,0.00045083,120]
[392155315,1761217849626,-160.79188135,0.000451,28]
[392155316,1761217849637,-580.24976083,0.000451,28]
[392155317,1761217849646,-155.47,0.000451,120]
[392155318,1761217849655,-197.79,0.000451,120]
[392155319,1761217849664,-434.0,0.00045108,7]
[392155320,1761217849674,-958.32,0.00045113,120]
[392155321,1761217849683,-552.36,0.00045113,120]
[392155322,1761217849692,-500.0,0.00045113,30]
[392155323,1761217849702,-511.52007189,0.00045113,120]
[392155324,1761217849712,-537.22,0.00045113,120]
[392155325,1761217849722,-519.54,0.00045113,120]
[392155326,1761217849731,-500.0,0.00045113,120]
[392155327,1761217849740,-500.0,0.00045113,120]
[392155328,1761217849750,-614.78,0.00045113,120]
[392155329,1761217849759,-500.0,0.00045113,120]
[392155330,1761217849768,-500.0,0.00045113,120]
[392155331,1761217849778,-472.90693744,0.00045113,120]
[392155332,1761217849787,-743.89,0.00045113,120]
[392155333,1761217849797,-500.0,0.00045113,120]
[392155334,1761217849806,-500.0,0.00045113,120]
[392155335,1761217849816,-500.0,0.00045113,120]
[392155336,1761217849826,-500.0,0.00045113,120]
[392155337,1761217849836,-500.0,0.00045113,120]
[392155338,1761217849845,-500.0,0.00045113,120]
[392155339,1761217849855,-507.97,0.00045113,120]
[392155340,1761217849864,-500.0,0.00045113,120]
[392155341,1761217849874,-500.0,0.00045113,120]
[392155342,1761217849884,-500.0,0.00045113,120]
[392155343,1761217849894,-502.34118102,0.00045113,120]
[392155344,1761217849904,-529.91,0.00045113,120]
[392155345,1761217849914,-701.22,0.00045113,120]
[392155346,1761217849923,-500.0,0.00045113,120]
[392155347,1761217849932,-500.0,0.00045113,120]
[392155348,1761217849942,-500.0,0.00045113,120]
[392155349,1761217849950,-500.0,0.00045144,120]
[392155350,1761217849960,-500.0,0.00045144,120]
[392155351,1761217849969,-500.0,0.00045144,120]
[392155352,1761217849979,-500.0,0.00045144,30]
[392155353,1761217849988,-500.0,0.00045144,120]
[392155354,1761217849998,-500.0,0.00045144,120]
[392155355,1761217850007,-500.0,0.00045144,120]
[392155356,1761217850018,-500.0,0.00045144,120]
[392155357,1761217850027,-500.0,0.00045144,120]
[392155358,1761217850036,-500.0,0.00045144,120]
[392155359,1761217850045,-500.0,0.00045144,120]
[392155360,1761217850056,-500.0,0.00045144,120]
[392155361,1761217850065,-503.14,0.00045144,120]
[392155362,1761217850075,-500.0,0.00045144,120]
[392155363,1761217850085,-500.0,0.00045144,120]
[392155364,1761217850094,-500.0,0.00045144,120]
[392155365,1761217850103,-500.0,0.00045144,120]
[392155366,1761217850112,-500.0,0.00045144,120]
[392155367,1761217850122,-500.0,0.00045144,30]
[392155368,1761217850132,-500.0,0.00045144,120]
[392155369,1761217850142,-500.0,0.00045144,30]
[392155370,1761217850151,-780.92,0.00045144,120]
[392155371,1761217850161,-500.0,0.00045144,120]
[392155372,1761217850171,-500.0,0.00045144,120]
[392155373,1761217850180,-500.0,0.00045144,120]
[392155374,1761217850190,-774.04,0.00045144,120]
[392155375,1761217850199,-500.0,0.00045144,120]
[392155376,1761217850208,-500.0,0.00045144,120]
[392155377,1761217850218,-500.0,0.00045144,120]
[392155378,1761217850227,-500.0,0.00045144,60]
[392155379,1761217850237,-500.0,0.00045144,120]
[392155380,1761217850247,-500.0,0.00045144,120]
[392155381,1761217850257,-500.0,0.00045144,120]
[392155382,1761217850267,-500.0,0.00045144,120]
[392155383,1761217850277,-500.0,0.00045144,2]
[392155384,1761217850286,-532.51,0.00045144,120]
[392155385,1761217850296,-500.0,0.00045144,120]
[392155386,1761217850307,-500.0,0.00045144,120]
[392155387,1761217850321,-500.0,0.00045144,120]
[392155388,1761217850330,-500.0,0.00045144,120]
[392155389,1761217850340,-612.46,0.00045144,120]
[392155390,1761217850350,-500.0,0.00045144,120]
[392155391,1761217850359,-787.16,0.00045144,120]
[392155392,1761217850368,-500.0,0.00045144,120]
[392155393,1761217850378,-500.0,0.00045144,120]
[392155394,1761217850388,-6412.86,0.00045144,120]
[392155395,1761217850398,-500.0,0.00045144,120]
[392155396,1761217850407,-500.0,0.00045144,120]
[392155397,1761217850417,-529.92,0.00045144,120]
[392155398,1761217850427,-558.57,0.00045144,120]
[392155399,1761217850437,-681.78,0.00045144,120]
[392155400,1761217850447,-733.16,0.00045144,120]
[392155401,1761217850456,-500.0,0.00045144,120]
[392155402,1761217850466,-681.15,0.00045144,120]
[392155403,1761217850475,-500.0,0.00045144,120]
[392155404,1761217850485,-237.2392745,0.00045144,120]
[392155405,1761217850494,-500.0,0.00045144,120]
[392155406,1761217850504,-500.0,0.00045144,120]
[392155407,1761217850514,-628.4,0.00045144,120]
[392155408,1761217850523,-500.0,0.00045144,120]
[392155409,1761217850532,-500.0,0.00045144,120]
[392155410,1761217850541,-500.0,0.00045144,120]
[392155411,1761217850550,-500.0,0.00045144,120]
[392155412,1761217850559,-500.0,0.00045144,120]
[392155413,1761217850568,-500.0,0.00045144,120]
[392155414,1761217850577,-500.0,0.00045144,120]
[392155415,1761217850587,-500.0,0.00045144,120]
[392155416,1761217850597,-500.0,0.00045144,120]
[392155417,1761217850606,-500.0,0.00045144,120]
[392155418,1761217850615,-500.0,0.00045144,2]
[392155419,1761217850625,-840.08,0.00045144,120]
[392155420,1761217850635,-500.0,0.00045144,120]
[392155421,1761217850644,-500.0,0.00045144,120]
[392155422,1761217850654,-500.0,0.00045144,120]
[392155423,1761217850663,-500.0,0.00045144,12]
[392155424,1761217850672,-500.0,0.00045144,120]
[392155425,1761217850682,-500.0,0.00045144,120]
[392155426,1761217850692,-300.0,0.00045144,120]
[392155427,1761217850701,-500.0,0.00045144,120]
[392155428,1761217850711,-500.0,0.00045144,120]
[392155429,1761217850721,-500.0,0.00045144,120]
[392155430,1761217850731,-500.0,0.00045144,120]
[392155431,1761217850740,-500.0,0.00045144,120]
[392155432,1761217850749,-561.72,0.00045144,120]
[392155433,1761217850759,-500.0,0.00045144,120]
[392155434,1761217850769,-500.0,0.00045144,120]
[392155435,1761217850779,-533.07,0.00045144,120]
[392155436,1761217850788,-500.0,0.00045144,120]
[392155437,1761217850798,-674.63,0.00045144,120]
[392155438,1761217850807,-1034.38,0.00045144,120]
[392155439,1761217850817,-543.29,0.00045144,120]
[392155440,1761217850826,-500.0,0.00045145,120]
[392155441,1761217850836,-598.35,0.00045145,120]
[392155442,1761217850846,-546.64,0.00045145,120]
[392155443,1761217850855,-298542.39978995,0.0004515,120]
[392155444,1761217850979,-500.0,0.0004515,120]
[392155445,1761217850991,-928.94451976,0.0004515,120]
[392155446,1761217851002,-12192.98510675,0.0004515,120]
[392155447,1761217851332,-151.0,0.00045,120]
[392155448,1761217851342,-151.0,0.00045,120]
[392155449,1761217851351,-151.0,0.00045,120]
[392155450,1761217851365,-151.0,0.00045,120]
[392155451,1761217851375,-139.1055666,0.00045,120]
[392155452,1761217851386,-11.8944334,0.00045,120]
[392155453,1761217851396,-151.0,0.00045,120]
[392155454,1761217851405,-151.0,0.00045,120]
[392155455,1761217851415,-1716.71310696,0.0004515,120]
[392155456,1761217851426,-1095.25676,0.0004515,120]
[392155457,1761217851559,-151.0,0.00045,120]
[392155458,1761217851568,-295.57791638,0.0004515,120]
[392155459,1761217851664,151.0,0.00037578,2]
[392155460,1761217863070,151.0,0.00039892,2]
[392155461,1761217879886,151.0,0.00039728,2]
[392155463,1761217896399,151.0,0.00038733,2]
[392155464,1761217912979,151.0,0.00037859,2]
[392155465,1761217937340,172.03,0.00034813,2]
[392155466,1761217940362,184.27125,0.00029228,2]
[392155469,1761218034735,213.61,0.00013699,2]
[392155470,1761218038426,-154.55275533,0.00020187,2]
[392155474,1761218083357,-189.78,0.00020187,2]
[392155475,1761218088520,-184.75224072,0.00020187,2]
[392155476,1761218089901,-230.42002038,0.00020187,2]
[392155477,1761218092022,-386.64677937,0.00020187,2]
[392155478,1761218093657,-176.25,0.00020187,2]
[392155479,1761218094917,-431.85826948,0.00020187,2]
[392155480,1761218097009,-236.620845,0.00020087,2]
[392155483,1761218113896,-202.35359626,0.00019986,2]
[392155484,1761218116024,-306.92410812,0.00019986,2]
[392155485,1761218117555,-207.76889484,0.00019986,2]
[392155486,1761218119562,-281.67319378,0.00019986,2]
[392155487,1761218119585,-18.32680622,0.00020087,2]
[392155488,1761218121709,-195.01483769,0.00020087,2]
[392155489,1761218126104,-229.79431841,0.00020087,2]
[392155490,1761218126127,-268.6918043,0.00020173,2]
[392155491,1761218128330,-151.02551007,0.00020173,2]
[392155492,1761218129638,-113.43742108,0.00020173,2]
[392155493,1761218129659,-76.27287463,0.00020173,2]
[392155494,1761218132318,-200.0,0.00020173,2]
[392155496,1761218171512,-223.72712537,0.00020173,2]
[392155497,1761218171538,-500.0,0.00020173,2]
[392155498,1761218171562,-501.49056779,0.00020173,2]
[392155499,1761218171590,-316.53183403,0.00020173,2]
[392155500,1761218171615,-300.0,0.00020185,2]
[392155501,1761218171640,-1200.0,0.00020186,2]
[392155502,1761218171664,-300.0,0.00020186,2]
[392155503,1761218171688,-300.0,0.00020186,2]
[392155504,1761218171712,-270.0,0.00020186,2]
[392155505,1761218180466,151.02551,0.00020086,2]
[392155507,1761218188736,-205071.49511105,0.00020187,2]
[392155508,1761218188773,-59.05724467,0.00020187,2]
[392155509,1761218191125,500.59683785,0.00020173,2]
[392155510,1761218285700,-152.96882077,0.00020173,2]
[392155511,1761218285791,-167.01265877,0.00020173,2]
[392155512,1761218285887,-180.01852046,0.00020173,2]
[392155521,1761218512540,-1000.0,0.00020721,2]
[392155522,1761218512566,-195.0,0.00020995,2]
[392155523,1761218513477,162.0,0.0002,2]
[392155530,1761218698442,-320.66231103,0.00021268,2]
[392155531,1761218708085,28643.0,0.00015,2]
[392155532,1761218708112,5992.61841611,0.00015,2]
[392155533,1761218708139,6206.22841611,0.00015,2]
[392155534,1761218708170,6206.22841611,0.00015,2]
[392155535,1761218708199,6206.22841611,0.00015,2]
[392155536,1761218708227,6206.22841611,0.00015,2]
[392155537,1761218708255,6206.22841611,0.00015,2]
[392155538,1761218708281,6206.22841611,0.00015,2]
[392155539,1761218708308,6206.22841611,0.00015,2]
[392155540,1761218708333,6206.22841611,0.00015,2]
[392155541,1761218708360,6206.22841611,0.00015,2]
[392155542,1761218708390,80000.0,0.00015,2]
[392155543,1761218708426,4571027.82464921,0.00015,2]
[392155544,1761218725798,150.0,0.00036631,2]
[392155546,1761218759187,-221.75770419,0.00021268,2]
[392155547,1761218762472,159.16190694,8e-05,2]
[392155548,1761218766519,365.23193689,0.00011,2]
[392155550,1761218788399,-265.76,0.0002,2]
[392155552,1761218835100,-151.08764944,0.00019999,2]
[392155553,1761218835120,-218.84566078,0.00019999,2]
[392155554,1761218838953,181.70482992,0.0001305,2]
[392155555,1761218853195,-11.45032221,0.00019999,2]
[392155556,1761218853224,-352.49171515,0.00019999,2]
[392155557,1761218853253,-247.85575287,0.00019999,2]
[392155558,1761218853286,-500.0,0.00019999,2]
[392155559,1761218853316,-500.0,0.00019999,2]
[392155560,1761218853349,-500.0,0.00019999,2]
[392155561,1761218853380,-500.0,0.00019999,2]
[392155562,1761218853411,-500.0,0.00019999,2]
[392155563,1761218853441,-500.0,0.00019999,2]
[392155564,1761218853476,-500.0,0.00019999,2]
[392155565,1761218853507,-500.0,0.00019999,2]
[392155566,1761218853537,-500.0,0.00019999,2]
[392155567,1761218853567,-500.0,0.00019999,2]
[392155568,1761218853598,-500.0,0.00019999,2]
[392155569,1761218853627,-500.0,0.00019999,2]
[392155570,1761218853655,-500.0,0.00019999,2]
[392155571,1761218853685,-500.0,0.00019999,2]
[392155572,1761218853713,-500.0,0.00019999,2]
[392155573,1761218853742,-500.0,0.00019999,2]
[392155574,1761218853772,-500.0,0.00019999,2]
[392155575,1761218853800,-500.0,0.00019999,2]
[392155576,1761218853834,-500.0,0.00019999,2]
[392155577,1761218853865,-500.0,0.00019999,2]
[392155578,1761218853897,-262.9178996,0.00019999,2]
[392155579,1761218853926,-500.0,0.00019999,2]
[392155580,1761218853958,-500.0,0.00019999,2]
[392155581,1761218853989,-500.0,0.00019999,2]
[392155582,1761218854018,-500.0,0.00019999,2]
[392155583,1761218854044,-500.0,0.00019999,2]
[392155584,1761218854075,-500.0,0.00019999,2]
[392155585,1761218854103,-500.0,0.00019999,2]
[392155586,1761218854130,-500.0,0.00019999,2]
[392155587,1761218854158,-500.0,0.00019999,2]
[392155588,1761218854187,-500.0,0.00019999,2]
[392155589,1761218854215,-500.0,0.00019999,2]
[392155590,1761218854243,-500.0,0.00019999,2]
[392155591,1761218854270,-500.0,0.00019999,2]
[392155592,1761218854300,-500.0,0.00019999,2]
[392155593,1761218854324,-32125.28431017,0.0002,2]
[392155595,1761218870004,-12609.00944471,0.0002,2]
[392155597,1761218877316,12609.00944471,0.00015,2]
[392155598,1761218877341,516317.41808698,0.00015,2]
[392155600,1761218908455,-162.44,0.000205,2]
[392155601,1761218908477,-13.7393019,0.0002068,2]
[392155604,1761218949091,-1429.62468414,0.00020681,2]
[392155605,1761218955076,-13439.18927646,0.00020681,2]
[392155606,1761218955096,-195.0,0.00021542,2]
[392155607,1761218955118,-195.0,0.00022207,2]
[392155608,1761218955141,-218.59931712,0.00022749,2]
[392155609,1761218955163,-195.0,0.00022749,2]
[392155610,1761218955184,-1200.0,0.00022792,2]
[392155611,1761218955203,-150.0,0.00023395,2]
[392155612,1761218955226,-195.0,0.00023395,2]
[392155613,1761218955245,-333.57696531,0.00023395,2]
[392155614,1761218955264,-2500.0,0.00023395,2]
[392155615,1761218955286,-500.0,0.00023405,2]
[392155616,1761218955307,-500.0,0.00023405,2]
[392155617,1761218955328,-500.0,0.00023405,2]
[392155618,1761218955349,-226.29178996,0.00023405,2]
[392155619,1761218955368,-14868.8139606,0.00023406,2]
[392155620,1761218955389,-400.0,0.00024862,2]
[392155621,1761218955408,-195.88018385,0.00025,2]
[392155622,1761218960085,-14868.8139606,0.00026131,2]
[392155623,1761218960107,-213.61,0.00026676,2]
[392155624,1761218960131,-1051.72578099,0.00028857,2]
[392155625,1761218965105,-13817.08817961,0.00028857,2]
[392155626,1761218965125,-151.0,0.0002895,2]
[392155627,1761218965145,-151.0,0.0002895,2]
[392155628,1761218965166,-151.0,0.0002895,2]
[392155629,1761218965186,-151.0,0.0002895,2]
[392155630,1761218965209,-151.0,0.0002895,2]
[392155631,1761218965229,-286.46985131,0.0002895,2]
[392155632,1761218965248,-161.0,0.00033,5]
[392155633,1761218965269,-213.61,0.00033165,2]
[392155634,1761218965288,-157.42,0.00033194,2]
[392155635,1761218965308,-1290.67,0.00033228,2]
[392155636,1761218965330,-200.0,0.000357,2]
[392155637,1761218965352,-212.6,0.00036261,2]
[392155638,1761218965372,-7659.7,0.00036261,2]
[392155639,1761218965392,-562.99,0.00036588,45]
[392155640,1761218965419,-10000.0,0.00036591,10]
[392155641,1761218965442,-1039.29694908,0.00036591,30]
[392155642,1761218966112,-4349.358972,0.00036591,30]
[392155643,1761218973096,-4611.34407892,0.00036591,30]
[392155644,1761218973115,-10000.0,0.00036591,2]
[392155645,1761218973135,-356.16454594,0.00036733,5]
[392155646,1761218973155,-500.0,0.00036733,5]
[392155647,1761218973175,-6180.42518276,0.000369,2]
[392155648,1761218973198,-215.64134477,0.00036957,2]
[392155649,1761218973218,-165.77443254,0.00036957,15]
[392155650,1761218973237,-500.0,0.00036989,15]
[392155651,1761218973256,-348.39622225,0.00036989,15]
[392155652,1761218973276,-51190.8067049,0.0003699,3]
[392155653,1761218973295,-222319.58988792,0.00037,90]
[392155654,1761218985894,540.5512374,0.00025187,2]
[392155655,1761218986103,540.5512374,0.00028445,2]
[392155656,1761218986341,540.5512374,0.00031702,2]
[392155669,1761219031440,-540.5512374,0.0003496,2]
[392155670,1761219031450,-174.0,0.00036999,2]
[392155671,1761219031460,-1951.93377006,0.00037,90]
[392155672,1761219031472,-1134.20792491,0.00037,90]
[392155673,1761219031483,-2136.39133706,0.00037,90]
[392155674,1761219031494,-10349.7682,0.00037,90]
[392155675,1761219031529,-938.28735,0.00037,90]
[392155676,1761219031541,-567.78010029,0.00037,90]
[392155677,1761219031639,-1053.2079994,0.00037,90]
[392155678,1761219031650,-5144.69693378,0.00037,90]
[392155679,1761219031730,-2236.37794405,0.00037,90]
[392155680,1761219031744,-1305.0,0.00037,90]
[392155681,1761219031756,-965.77751045,0.00037,90]
[392155682,1761219031768,-2500.95011707,0.00037,90]
[392155720,1761219037395,-191.81019888,0.00036999,15]
[392155721,1761219037405,-3249.72221504,0.00037,90]
[392155722,1761219037447,-1650.11734026,0.00037,90]
[392155723,1761219037458,-367.30769344,0.00037,90]
[392155724,1761219037554,-15020.52837969,0.00037,90]
[392155725,1761219037568,-4364.0162125,0.00037,90]
[392155726,1761219037580,-38444.33908408,0.00037,90]
[392155727,1761219037590,-443.37756711,0.00037172,2]
[392155728,1761219037600,-3170.67232824,0.00037271,3]
[392155729,1761219037612,-1923.56255802,0.00037271,3]
[392155731,1761219037624,-2218.73750016,0.00037271,3]
[392155733,1761219037633,-1287.52732547,0.00037789,2]
[392155744,1761219039584,-549.826237,0.00037789,2]
[392155745,1761219039876,-1.6e-07,0.00037789,2]
[392155746,1761219039902,-3950.3560211,0.00037789,2]
[392155747,1761219039918,-392.71559894,0.00037789,2]
[392155748,1761219039933,-443.37756704,0.00038276,2]
[392155749,1761219039943,-308.17412871,0.00038456,120]
[392155750,1761219039952,-234.58,0.00038643,2]
[392155751,1761219039961,-6180.42518267,0.00038678,2]
[392155752,1761219039972,-2693.79,0.00038987,2]
[392155753,1761219039983,-443.37756704,0.0003938,2]
[392155754,1761219039992,-150.0,0.00039427,4]
[392155755,1761219040002,-593.87735558,0.00039566,15]
[392155757,1761219040012,-6180.42518267,0.00039567,2]
[392155758,1761219040022,-213.61,0.00039654,2]
[392155759,1761219040031,-234.58,0.00040092,2]
[392155760,1761219040040,-449.9107,0.00040388,2]
[392155761,1761219040049,-6180.42518267,0.00040456,15]
[392155762,1761219040058,-443.37756704,0.00040484,28]
[392155763,1761219040068,-165.77443253,0.00040939,15]
[392155764,1761219040077,-200.0,0.00041096,20]
[392155765,1761219040086,-168.0,0.00041234,2]
[392155766,1761219040096,-6180.42518267,0.00041344,15]
[392155767,1761219040105,-168.0,0.0004151,2]
[392155768,1761219040115,-234.58,0.00041541,2]
[392155769,1761219040124,-500.0,0.0004156,10]
[392155770,1761219040134,-168.0,0.00041578,2]
[392155771,1761219040143,-443.37756704,0.00041588,28]
[392155772,1761219040152,-168.0,0.00041707,2]
[392155773,1761219040162,-438.36324517,0.00042108,10]
[392155774,1761219040171,-168.0,0.00042168,2]
[392155775,1761219040182,-6180.42518267,0.00042233,15]
[392155776,1761219040202,-500.0,0.00042438,2]
[392155777,1761219040212,-500.0,0.00042438,2]
[392155778,1761219040222,-500.0,0.00042438,2]
[392155779,1761219040232,-500.0,0.00042438,2]
[392155780,1761219040242,-500.0,0.00042438,2]
[392155781,1761219040251,-500.0,0.00042438,2]
[392155782,1761219040260,-500.0,0.00042438,2]
[392155783,1761219040270,-500.0,0.00042438,2]
[392155784,1761219040280,-500.0,0.00042438,2]
[392155785,1761219040289,-500.0,0.00042438,2]
[392155786,1761219040298,-500.0,0.00042438,2]
[392155787,1761219040307,-500.0,0.00042438,2]
[392155788,1761219040316,-500.0,0.00042438,2]
[392155789,1761219040326,-500.0,0.00042438,2]
[392155790,1761219040336,-500.0,0.00042438,2]
[392155791,1761219040345,-500.0,0.00042438,2]
[392155792,1761219040354,-500.0,0.00042438,2]
[392155793,1761219040363,-500.0,0.00042438,2]
[392155794,1761219040372,-500.0,0.00042438,2]
[392155795,1761219040381,-500.0,0.00042438,2]
[392155796,1761219040391,-500.0,0.00042438,2]
[392155797,1761219040401,-500.0,0.00042438,2]
[392155798,1761219040410,-500.0,0.00042438,2]
[392155799,1761219040420,-500.0,0.00042438,2]
[392155800,1761219040430,-500.0,0.00042438,2]
[392155801,1761219040439,-500.0,0.00042438,2]
[392155802,1761219040449,-500.0,0.00042438,2]
[392155803,1761219040459,-500.0,0.00042438,2]
[392155804,1761219040469,-500.0,0.00042438,2]
[392155805,1761219040479,-500.0,0.00042438,2]
[392155806,1761219040488,-500.0,0.00042438,2]
[392155807,1761219040498,-500.0,0.00042438,2]
[392155808,1761219040508,-500.0,0.00042438,2]
[392155809,1761219040517,-500.0,0.00042438,2]
[392155810,1761219040527,-500.0,0.00042438,2]
[392155811,1761219040536,-500.0,0.00042438,2]
[392155812,1761219040546,-500.0,0.00042438,2]
[392155813,1761219040555,-500.0,0.00042438,2]
[392155814,1761219040565,-500.0,0.00042438,2]
[392155815,1761219040574,-514.84070869,0.00042438,2]
[392155816,1761219040583,-500.0,0.00042438,2]
[392155817,1761219040593,-500.0,0.00042438,2]
[392155818,1761219040603,-500.0,0.00042438,2]
[392155819,1761219040613,-443.37756704,0.00042692,28]
[392155820,1761219040623,-168.0,0.00042783,2]
[392155821,1761219040632,-533.88981491,0.00042986,2]
[392155822,1761219040642,-234.58,0.0004299,2]
[392155823,1761219040651,-7312.97238642,0.0004299,3]
[392155824,1761219040660,-3988.83589758,0.00043,4]
[392155825,1761219040670,-1002.0,0.00043,90]
[392155826,1761219040680,-176.3,0.00043087,30]
[392155827,1761219040689,-414.24,0.00043087,30]
[392155828,1761219040698,-175.39,0.00043087,30]
[392155829,1761219040708,-168.47,0.00043087,30]
[392155830,1761219040718,-176.3,0.00043087,30]
[392155831,1761219040728,-414.24,0.00043087,30]
[392155832,1761219040737,-176.3,0.00043087,30]
[392155833,1761219040747,-168.47,0.00043087,30]
[392155834,1761219040756,-414.24,0.00043087,30]
[392155835,1761219040765,-175.1,0.00043087,30]
[392155836,1761219040774,-168.47,0.00043087,30]
[392155837,1761219040783,-353.36,0.00043087,30]
[392155838,1761219040792,-6180.42518267,0.00043122,15]
[392155839,1761219040802,-835.21,0.00043437,120]
[392155840,1761219040811,-172.03,0.00043516,2]
[392155841,1761219040820,-553.64373807,0.00043534,2]
[392155842,1761219040829,-468.56371396,0.0004371,20]
[392155843,1761219040838,-1004.6575931,0.0004371,15]
[392155844,1761219040847,-500.0,0.0004373,30]
[392155845,1761219040857,-581.22513456,0.0004373,120]
[392155846,1761219040866,-168.0,0.00043751,2]
[392155847,1761219040875,-7312.97238642,0.0004378,3]
[392155848,1761219040884,-87755.668637,0.0004379,3]
[392155849,1761219040894,-443.37756704,0.00043796,28]
[392155850,1761219040904,-199.18575029,0.00043799,18]
[392155851,1761219040913,-73129.7238642,0.000438,3]
[392155852,1761219040923,-192853.51,0.0004381,2]
[392155853,1761219040933,-25601.93677833,0.0004381,30]
[392155854,1761219040944,-999.0,0.00043819,120]
[392155855,1761219040954,-500.0,0.00043835,120]
[392155856,1761219040964,-500.0,0.00043835,120]
[392155857,1761219040979,-500.0,0.00043835,120]